[Event "Late-Titled-Tuesday-Blitz-November-28-2023"]
[Site "Chess.com"]
[Date "2023.11.28"]
[Round "10"]
[White "SouS007"]
[Black "kleber2007"]
[Result "1-0"]
[WhiteElo "2576"]
[BlackElo "2390"]
[TimeControl "180+1"]
[EndTime "15:51:29 PST"]
[Termination "SouS007 won by checkmate"]

1. h4 {[%clk 0:03:00.2]} 1... d5 {[%clk 0:02:58.5]} 2. d4 {[%clk 0:03:00.1]}
2... c5 {[%clk 0:02:57.6]} 3. e4 {[%clk 0:03:00.1]} 3... dxe4 {[%clk 0:02:56.2]}
4. d5 {[%clk 0:03:01]} 4... e6 {[%clk 0:02:55.4]} 5. Bb5+ {[%clk 0:02:57.7]}
5... Bd7 {[%clk 0:02:45.7]} 6. dxe6 {[%clk 0:02:57.4]} 6... fxe6 {[%clk
0:02:45.6]} 7. Qh5+ {[%clk 0:02:56.6]} 7... g6 {[%clk 0:02:45.3]} 8. Qe5 {[%clk
0:02:57.2]} 8... Nf6 {[%clk 0:02:44.3]} 9. Bg5 {[%clk 0:02:56]} 9... Be7 {[%clk
0:02:27.9]} 10. Nc3 {[%clk 0:02:55.4]} 10... O-O {[%clk 0:02:16.9]} 11. O-O-O
{[%clk 0:02:53.5]} 11... Nc6 {[%clk 0:02:08.6]} 12. Bxc6 {[%clk 0:02:52.8]}
12... bxc6 {[%clk 0:02:09.2]} 13. Nh3 {[%clk 0:02:34.7]} 13... Nd5 {[%clk
0:02:08.3]} 14. Nxe4 {[%clk 0:02:33.1]} 14... Bxg5+ {[%clk 0:01:55.6]} 15. Nhxg5
{[%clk 0:02:29]} 15... Rf5 {[%clk 0:01:41.2]} 16. Qd6 {[%clk 0:02:28.8]} 16...
h6 {[%clk 0:00:46.1]} 17. Nxe6 {[%clk 0:02:24.6]} 17... Bxe6 {[%clk 0:00:36]}
18. Qxe6+ {[%clk 0:02:25.5]} 18... Kg7 {[%clk 0:00:32]} 19. h5 {[%clk
0:02:20.5]} 19... Qe8 {[%clk 0:00:28.8]} 20. Qxe8 {[%clk 0:02:18.5]} 20... Rxe8
{[%clk 0:00:27.6]} 21. Nd6 {[%clk 0:02:19.4]} 21... Re6 {[%clk 0:00:25.4]} 22.
Nxf5+ {[%clk 0:02:17.8]} 22... gxf5 {[%clk 0:00:26.3]} 23. Rh3 {[%clk
0:02:17.1]} 23... f4 {[%clk 0:00:21.3]} 24. Ra3 {[%clk 0:02:15.6]} 24... Re2
{[%clk 0:00:19.5]} 25. Rxa7+ {[%clk 0:02:15.2]} 25... Kf6 {[%clk 0:00:19.6]} 26.
Ra6 {[%clk 0:02:15]} 26... Rxf2 {[%clk 0:00:18]} 27. Rxd5 {[%clk 0:02:14.1]}
27... Rf1+ {[%clk 0:00:06.8]} 28. Rd1 {[%clk 0:02:14.1]} 28... f3 {[%clk
0:00:05.5]} 29. Rxc6+ {[%clk 0:02:14.6]} 29... Ke5 {[%clk 0:00:05.6]} 30. Rxf1
{[%clk 0:02:15.1]} 30... Kd5 {[%clk 0:00:05.2]} 31. Rxf3 {[%clk 0:02:14.2]}
31... Kxc6 {[%clk 0:00:04.7]} 32. Rf6+ {[%clk 0:02:15.1]} 32... Kb5 {[%clk
0:00:04.9]} 33. Rxh6 {[%clk 0:02:16]} 33... c4 {[%clk 0:00:05.6]} 34. Rg6 {[%clk
0:02:16.9]} 34... Kc5 {[%clk 0:00:05.5]} 35. Rg8 {[%clk 0:02:16.2]} 35... Kd6
{[%clk 0:00:05.4]} 36. Rc8 {[%clk 0:02:16.3]} 36... Kd7 {[%clk 0:00:05.4]} 37.
Rxc4 {[%clk 0:02:17.2]} 37... Kd6 {[%clk 0:00:05.8]} 38. h6 {[%clk 0:02:17.1]}
38... Kd5 {[%clk 0:00:06]} 39. b3 {[%clk 0:02:16.8]} 39... Ke5 {[%clk
0:00:05.9]} 40. h7 {[%clk 0:02:17.2]} 40... Kf6 {[%clk 0:00:06.1]} 41. h8=Q+
{[%clk 0:02:17.5]} 41... Kg5 {[%clk 0:00:07]} 42. Qh1 {[%clk 0:02:09.1]} 42...
Kf5 {[%clk 0:00:05.3]} 43. Rh4 {[%clk 0:02:08.7]} 43... Ke5 {[%clk 0:00:05.2]}
44. Qf1 {[%clk 0:02:07.2]} 44... Kd5 {[%clk 0:00:05.1]} 45. g4 {[%clk
0:02:06.5]} 45... Ke6 {[%clk 0:00:04.9]} 46. g5 {[%clk 0:02:06.8]} 46... Ke5
{[%clk 0:00:05.8]} 47. g6 {[%clk 0:02:07]} 47... Kd5 {[%clk 0:00:06.7]} 48. g7
{[%clk 0:02:07.3]} 48... Kc5 {[%clk 0:00:07.6]} 49. Rh2 {[%clk 0:02:01.7]} 49...
Kb4 {[%clk 0:00:07.4]} 50. Kb2 {[%clk 0:02:00.1]} 50... Kc5 {[%clk 0:00:07.2]}
51. Rg2 {[%clk 0:02:00.7]} 51... Kd5 {[%clk 0:00:08.1]} 52. Qh1 {[%clk
0:02:00.9]} 52... Kd4 {[%clk 0:00:09]} 53. g8=Q {[%clk 0:02:00.1]} 53... Ke5
{[%clk 0:00:09.9]} 54. Qgh8+ {[%clk 0:01:55.5]} 54... Ke4 {[%clk 0:00:10.8]} 55.
Q8h2 {[%clk 0:01:55.1]} 55... Kf3 {[%clk 0:00:11.7]} 56. a4 {[%clk 0:01:53.7]}
56... Ke4 {[%clk 0:00:12.6]} 57. a5 {[%clk 0:01:54.1]} 57... Kd4 {[%clk
0:00:13.5]} 58. a6 {[%clk 0:01:54.2]} 58... Kc5 {[%clk 0:00:14.4]} 59. a7 {[%clk
0:01:54.4]} 59... Kb6 {[%clk 0:00:15.3]} 60. a8=Q {[%clk 0:01:53.2]} 60... Kc5
{[%clk 0:00:15.3]} 61. Qaa1 {[%clk 0:01:53.6]} 61... Kb5 {[%clk 0:00:16.2]} 62.
c3 {[%clk 0:01:52.7]} 62... Kc5 {[%clk 0:00:17.1]} 63. b4+ {[%clk 0:01:52.9]}
63... Kb5 {[%clk 0:00:18]} 64. Kb3 {[%clk 0:01:50.8]} 64... Kb6 {[%clk
0:00:18.9]} 65. c4 {[%clk 0:01:51.1]} 65... Kb7 {[%clk 0:00:19.8]} 66. Kb2
{[%clk 0:01:51.6]} 66... Kb6 {[%clk 0:00:20.7]} 67. b5 {[%clk 0:01:51.5]} 67...
Kb7 {[%clk 0:00:21.6]} 68. c5 {[%clk 0:01:51.2]} 68... Kc8 {[%clk 0:00:21.3]}
69. c6 {[%clk 0:01:49.9]} 69... Kd8 {[%clk 0:00:20.4]} 70. b6 {[%clk 0:01:50.5]}
70... Ke7 {[%clk 0:00:20.6]} 71. b7 {[%clk 0:01:49.1]} 71... Ke6 {[%clk
0:00:21.5]} 72. b8=Q {[%clk 0:01:48.6]} 72... Kd5 {[%clk 0:00:22.4]} 73. c7
{[%clk 0:01:48.2]} 73... Kd4 {[%clk 0:00:23.3]} 74. c8=Q {[%clk 0:01:46.2]}
74... Ke3 {[%clk 0:00:24.2]} 75. Re2+ {[%clk 0:01:38.7]} 75... Kd3 {[%clk
0:00:25.1]} 76. Qad1# {[%clk 0:01:37.9]} 1-0

[Event "Late-Titled-Tuesday-Blitz-November-28-2023"]
[Site "Chess.com"]
[Date "2023.11.28"]
[Round "10"]
[White "Dino_Ballecer"]
[Black "Alex_Sahakyan2006"]
[Result "0-1"]
[WhiteElo "2579"]
[BlackElo "2710"]
[TimeControl "180+1"]
[EndTime "15:51:43 PST"]
[Termination "Alex_Sahakyan2006 won by checkmate"]

1. e4 {[%clk 0:03:00.9]} 1... c5 {[%clk 0:02:57.6]} 2. Nf3 {[%clk 0:03:00.6]}
2... a6 {[%clk 0:02:58]} 3. g3 {[%clk 0:02:56.4]} 3... b5 {[%clk 0:02:55.8]} 4.
Bg2 {[%clk 0:02:56.1]} 4... Bb7 {[%clk 0:02:56.4]} 5. d3 {[%clk 0:02:56.1]} 5...
g6 {[%clk 0:02:55.6]} 6. O-O {[%clk 0:02:55.5]} 6... Bg7 {[%clk 0:02:56]} 7. a4
{[%clk 0:02:54.6]} 7... d6 {[%clk 0:02:51.5]} 8. Re1 {[%clk 0:02:53.7]} 8... e5
{[%clk 0:02:51.2]} 9. Nc3 {[%clk 0:02:50.2]} 9... Ne7 {[%clk 0:02:49.7]} 10.
axb5 {[%clk 0:02:49]} 10... axb5 {[%clk 0:02:50.6]} 11. Rxa8 {[%clk 0:02:49.4]}
11... Bxa8 {[%clk 0:02:51.5]} 12. Nxb5 {[%clk 0:02:49.4]} 12... O-O {[%clk
0:02:51.4]} 13. c4 {[%clk 0:02:34]} 13... Nbc6 {[%clk 0:02:50.7]} 14. Bd2 {[%clk
0:02:33]} 14... Nd4 {[%clk 0:02:51.1]} 15. Nfxd4 {[%clk 0:02:32.6]} 15... exd4
{[%clk 0:02:49.7]} 16. b4 {[%clk 0:02:32.2]} 16... Nc6 {[%clk 0:02:48.4]} 17.
bxc5 {[%clk 0:02:26.8]} 17... dxc5 {[%clk 0:02:47.9]} 18. f4 {[%clk 0:02:26]}
18... Bb7 {[%clk 0:02:47.1]} 19. e5 {[%clk 0:02:23.9]} 19... Qb8 {[%clk
0:02:44.3]} 20. Nd6 {[%clk 0:02:18.2]} 20... Ba8 {[%clk 0:02:44]} 21. Qa4 {[%clk
0:02:16.3]} 21... Qb2 {[%clk 0:02:41.9]} 22. Re2 {[%clk 0:02:06.6]} 22... Qb1+
{[%clk 0:02:37.7]} 23. Kf2 {[%clk 0:02:05.6]} 23... Nb4 {[%clk 0:02:31.2]} 24.
Bxb4 {[%clk 0:01:50]} 24... Bxg2 {[%clk 0:02:28.2]} 25. Kxg2 {[%clk 0:01:47]}
25... cxb4 {[%clk 0:02:24.8]} 26. Qc2 {[%clk 0:01:43.3]} 26... Qa1 {[%clk
0:02:12.6]} 27. c5 {[%clk 0:01:42.2]} 27... Qc3 {[%clk 0:02:01.5]} 28. c6 {[%clk
0:01:39]} 28... b3 {[%clk 0:02:01.6]} 29. Qb2 {[%clk 0:01:18.6]} 29... Qxc6+
{[%clk 0:01:59.9]} 30. Ne4 {[%clk 0:01:18.5]} 30... Rb8 {[%clk 0:02:00.3]} 31.
Qxd4 {[%clk 0:01:17.9]} 31... h6 {[%clk 0:01:50.6]} 32. Rb2 {[%clk 0:01:15.7]}
32... Rc8 {[%clk 0:01:46.6]} 33. Kf2 {[%clk 0:00:58.2]} 33... Qc2+ {[%clk
0:01:44.4]} 34. Nd2 {[%clk 0:00:58]} 34... Qd1 {[%clk 0:01:41.7]} 35. Nxb3
{[%clk 0:00:46]} 35... Rc2+ {[%clk 0:01:40.2]} 36. Rxc2 {[%clk 0:00:44]} 36...
Qxc2+ {[%clk 0:01:41.1]} 37. Kf3 {[%clk 0:00:41.9]} 37... Qxb3 {[%clk
0:01:40.5]} 38. Qc4 {[%clk 0:00:30.1]} 38... Qd1+ {[%clk 0:01:37]} 39. Kg2
{[%clk 0:00:23.9]} 39... Qe2+ {[%clk 0:01:34.9]} 40. Kh3 {[%clk 0:00:23.3]}
40... Qf1+ {[%clk 0:01:34.4]} 41. Kg4 {[%clk 0:00:21.6]} 41... Bxe5 {[%clk
0:01:14]} 42. Qc8+ {[%clk 0:00:14.4]} 42... Kg7 {[%clk 0:01:14.1]} 43. fxe5
{[%clk 0:00:14.6]} 43... Qxd3 {[%clk 0:01:08.7]} 44. Kh3 {[%clk 0:00:11]} 44...
Qf1+ {[%clk 0:01:06.6]} 45. Kg4 {[%clk 0:00:10.9]} 45... Qe2+ {[%clk 0:01:05.8]}
46. Kf4 {[%clk 0:00:09.9]} 46... Qxh2 {[%clk 0:01:04.3]} 47. Qd8 {[%clk
0:00:07.3]} 47... Qf2+ {[%clk 0:01:03]} 48. Ke4 {[%clk 0:00:07.1]} 48... Qe2+
{[%clk 0:01:02.9]} 49. Kf4 {[%clk 0:00:06.9]} 49... g5+ {[%clk 0:01:03]} 50. Kf5
{[%clk 0:00:04.7]} 50... Qf3# {[%clk 0:01:02]} 0-1

[Event "Late-Titled-Tuesday-Blitz-November-28-2023"]
[Site "Chess.com"]
[Date "2023.11.28"]
[Round "10"]
[White "krzyzan94"]
[Black "TimGrutter03"]
[Result "1-0"]
[WhiteElo "2731"]
[BlackElo "2542"]
[TimeControl "180+1"]
[EndTime "15:51:43 PST"]
[Termination "krzyzan94 won by resignation"]

1. Nf3 {[%clk 0:03:00.9]} 1... Nc6 {[%clk 0:02:57.7]} 2. g3 {[%clk 0:03:00]}
2... e5 {[%clk 0:02:56.8]} 3. d3 {[%clk 0:02:57.8]} 3... d5 {[%clk 0:02:54.9]}
4. Bg2 {[%clk 0:02:58.2]} 4... h6 {[%clk 0:02:54.2]} 5. O-O {[%clk 0:02:58.5]}
5... Be6 {[%clk 0:02:54.1]} 6. c4 {[%clk 0:02:59]} 6... dxc4 {[%clk 0:02:53.6]}
7. Qa4 {[%clk 0:02:59.5]} 7... Qd7 {[%clk 0:02:51.3]} 8. dxc4 {[%clk 0:02:59.2]}
8... e4 {[%clk 0:02:43.8]} 9. Rd1 {[%clk 0:02:56.3]} 9... Bd6 {[%clk 0:02:31.5]}
10. c5 {[%clk 0:02:45]} 10... exf3 {[%clk 0:02:30.3]} 11. Bxf3 {[%clk
0:02:35.4]} 11... Nge7 {[%clk 0:02:11.4]} 12. cxd6 {[%clk 0:02:35.5]} 12... cxd6
{[%clk 0:02:12.3]} 13. Nc3 {[%clk 0:02:33.5]} 13... O-O {[%clk 0:02:05.8]} 14.
Ne4 {[%clk 0:02:32.5]} 14... d5 {[%clk 0:01:55.9]} 15. Bxh6 {[%clk 0:02:24.9]}
15... dxe4 {[%clk 0:01:49.2]} 16. Rxd7 {[%clk 0:02:23.9]} 16... Bxd7 {[%clk
0:01:50.1]} 17. Bxg7 {[%clk 0:01:45.4]} 17... Kxg7 {[%clk 0:01:51]} 18. Bxe4
{[%clk 0:01:44.9]} 18... Rfd8 {[%clk 0:01:41]} 19. Qa3 {[%clk 0:01:38.8]} 19...
Bf5 {[%clk 0:01:28.1]} 20. Qc3+ {[%clk 0:01:29.8]} 20... Nd4 {[%clk 0:01:21]}
21. Bxb7 {[%clk 0:01:15.8]} 21... Rab8 {[%clk 0:01:17.5]} 22. Rd1 {[%clk
0:01:11.8]} 22... Rxb7 {[%clk 0:01:08.8]} 23. Rxd4 {[%clk 0:01:10.6]} 23... Rxd4
{[%clk 0:01:06.1]} 24. Qxd4+ {[%clk 0:01:11.5]} 24... f6 {[%clk 0:01:03]} 25. f3
{[%clk 0:01:06.9]} 25... Rd7 {[%clk 0:00:59]} 26. Qc5 {[%clk 0:01:01.6]} 26...
Be6 {[%clk 0:00:53.9]} 27. Kf2 {[%clk 0:01:00.5]} 27... Bxa2 {[%clk 0:00:50]}
28. h4 {[%clk 0:00:59.3]} 28... Bf7 {[%clk 0:00:38.6]} 29. g4 {[%clk 0:00:45.2]}
29... Ng6 {[%clk 0:00:35.1]} 30. h5 {[%clk 0:00:45.4]} 30... Ne5 {[%clk
0:00:28.8]} 31. Kg3 {[%clk 0:00:33]} 31... Rd2 {[%clk 0:00:20.1]} 32. h6+ {[%clk
0:00:30.5]} 32... Kg6 {[%clk 0:00:16.5]} 33. f4 {[%clk 0:00:28]} 33... Nd7
{[%clk 0:00:13.2]} 34. Qh5+ {[%clk 0:00:24.2]} 34... Kh7 {[%clk 0:00:10.1]} 35.
Qxf7+ {[%clk 0:00:25.1]} 35... Kxh6 {[%clk 0:00:10.2]} 36. Kh4 {[%clk
0:00:21.1]} 1-0

[Event "Late-Titled-Tuesday-Blitz-November-28-2023"]
[Site "Chess.com"]
[Date "2023.11.28"]
[Round "10"]
[White "Harry_Rakkel"]
[Black "GiorgianBarbosa"]
[Result "1-0"]
[WhiteElo "2661"]
[BlackElo "2528"]
[TimeControl "180+1"]
[EndTime "15:51:44 PST"]
[Termination "Harry_Rakkel won by resignation"]

1. e4 {[%clk 0:03:00.9]} 1... c5 {[%clk 0:03:00.3]} 2. Nf3 {[%clk 0:03:00.4]}
2... g6 {[%clk 0:03:00.9]} 3. d4 {[%clk 0:02:59.4]} 3... cxd4 {[%clk 0:03:01.8]}
4. Nxd4 {[%clk 0:02:59.2]} 4... Bg7 {[%clk 0:03:01.6]} 5. c4 {[%clk 0:02:57.7]}
5... Nc6 {[%clk 0:03:02]} 6. Be3 {[%clk 0:02:56]} 6... Nf6 {[%clk 0:03:02]} 7.
Nc3 {[%clk 0:02:54.8]} 7... O-O {[%clk 0:03:02.3]} 8. Be2 {[%clk 0:02:54]} 8...
Nxd4 {[%clk 0:03:02.8]} 9. Bxd4 {[%clk 0:02:52.9]} 9... d6 {[%clk 0:03:03.7]}
10. O-O {[%clk 0:02:52.1]} 10... Bd7 {[%clk 0:03:03.9]} 11. Qd2 {[%clk
0:02:45.6]} 11... Bc6 {[%clk 0:03:03.7]} 12. f3 {[%clk 0:02:44.4]} 12... Nd7
{[%clk 0:03:02.7]} 13. Bxg7 {[%clk 0:02:39]} 13... Kxg7 {[%clk 0:03:03.6]} 14.
Kh1 {[%clk 0:02:37.8]} 14... a5 {[%clk 0:03:01.2]} 15. f4 {[%clk 0:02:34.9]}
15... Nc5 {[%clk 0:02:57.3]} 16. Qe3 {[%clk 0:02:32.5]} 16... b6 {[%clk
0:02:45.5]} 17. Rf3 {[%clk 0:02:27.6]} 17... Qc7 {[%clk 0:02:42]} 18. Rh3 {[%clk
0:02:24.6]} 18... h5 {[%clk 0:01:34.5]} 19. f5 {[%clk 0:02:15.8]} 19... Nd7
{[%clk 0:01:24.4]} 20. Bxh5 {[%clk 0:02:08.2]} 20... Rh8 {[%clk 0:01:02.3]} 21.
Qg3 {[%clk 0:01:51]} 21... Ne5 {[%clk 0:00:57.3]} 22. Rf1 {[%clk 0:01:51.6]}
22... Qb7 {[%clk 0:00:48.5]} 23. fxg6 {[%clk 0:01:38.4]} 23... f6 {[%clk
0:00:34.8]} 24. Nd5 {[%clk 0:01:28]} 24... Bxd5 {[%clk 0:00:33]} 25. cxd5 {[%clk
0:01:23.5]} 25... Qc7 {[%clk 0:00:28.5]} 26. Bg4 {[%clk 0:01:16.2]} 26... Rxh3
{[%clk 0:00:28.4]} 27. Bxh3 {[%clk 0:01:08.2]} 27... Qc4 {[%clk 0:00:23.6]} 28.
Qf2 {[%clk 0:00:59.6]} 28... Qxe4 {[%clk 0:00:19.6]} 29. Qxb6 {[%clk 0:00:57.5]}
29... Rh8 {[%clk 0:00:17.3]} 30. Qa7 {[%clk 0:00:52]} 30... Nd3 {[%clk
0:00:08.5]} 31. Be6 {[%clk 0:00:47.3]} 31... Nf2+ {[%clk 0:00:08]} 32. Qxf2
{[%clk 0:00:46]} 32... Qe5 {[%clk 0:00:05.9]} 33. Qf4 {[%clk 0:00:44.1]} 33...
Qxb2 {[%clk 0:00:03.8]} 34. a4 {[%clk 0:00:44]} 34... Rh5 {[%clk 0:00:03.2]} 35.
h3 {[%clk 0:00:42.3]} 35... Rg5 {[%clk 0:00:03.6]} 36. Qf3 {[%clk 0:00:40]}
36... Qe5 {[%clk 0:00:03.4]} 37. Qf2 {[%clk 0:00:37]} 37... Rg3 {[%clk
0:00:03.2]} 38. Re1 {[%clk 0:00:36.1]} 38... Qg5 {[%clk 0:00:03.1]} 39. Bg4
{[%clk 0:00:32.6]} 39... Kxg6 {[%clk 0:00:02.8]} 1-0

[Event "Late-Titled-Tuesday-Blitz-November-28-2023"]
[Site "Chess.com"]
[Date "2023.11.28"]
[Round "10"]
[White "GMthekingindian"]
[Black "giomar27"]
[Result "1-0"]
[WhiteElo "2350"]
[BlackElo "2412"]
[TimeControl "180+1"]
[EndTime "15:51:49 PST"]
[Termination "GMthekingindian won by resignation"]

1. e4 {[%clk 0:03:00.9]} 1... e5 {[%clk 0:02:59.3]} 2. Nf3 {[%clk 0:03:00.5]}
2... Nc6 {[%clk 0:02:59.1]} 3. Nc3 {[%clk 0:03:00.8]} 3... Nf6 {[%clk
0:02:58.1]} 4. d4 {[%clk 0:03:01]} 4... exd4 {[%clk 0:02:57.4]} 5. Nxd4 {[%clk
0:03:01.9]} 5... Bb4 {[%clk 0:02:55.5]} 6. Nxc6 {[%clk 0:03:02]} 6... bxc6
{[%clk 0:02:55.5]} 7. Bd3 {[%clk 0:03:02.6]} 7... O-O {[%clk 0:02:55.1]} 8. O-O
{[%clk 0:03:02.5]} 8... d5 {[%clk 0:02:53.3]} 9. exd5 {[%clk 0:03:03.4]} 9...
cxd5 {[%clk 0:02:53.2]} 10. h3 {[%clk 0:03:04]} 10... c6 {[%clk 0:02:51.6]} 11.
Qf3 {[%clk 0:03:03.1]} 11... Bd6 {[%clk 0:02:49.4]} 12. Bg5 {[%clk 0:03:02.3]}
12... Rb8 {[%clk 0:02:48.9]} 13. Nd1 {[%clk 0:02:30.4]} 13... h6 {[%clk
0:02:42.1]} 14. Bxf6 {[%clk 0:02:29.7]} 14... Qxf6 {[%clk 0:02:41.8]} 15. Qxf6
{[%clk 0:02:29.5]} 15... gxf6 {[%clk 0:02:42.7]} 16. Re1 {[%clk 0:02:23.3]}
16... Be6 {[%clk 0:02:38.6]} 17. b3 {[%clk 0:02:19.1]} 17... Be5 {[%clk
0:02:34.2]} 18. Rc1 {[%clk 0:02:18.9]} 18... c5 {[%clk 0:02:32.7]} 19. c4 {[%clk
0:02:17.8]} 19... d4 {[%clk 0:02:29.1]} 20. Nb2 {[%clk 0:02:11.6]} 20... Rfe8
{[%clk 0:02:13.4]} 21. Be4 {[%clk 0:02:06.6]} 21... Bf4 {[%clk 0:02:10.9]} 22.
Rcd1 {[%clk 0:02:06.4]} 22... Bd7 {[%clk 0:01:54.9]} 23. Nd3 {[%clk 0:02:00.7]}
23... Bd6 {[%clk 0:01:54.1]} 24. Bd5 {[%clk 0:01:57.7]} 24... Bf5 {[%clk
0:01:49.8]} 25. Kf1 {[%clk 0:01:52.5]} 25... Kf8 {[%clk 0:01:36.2]} 26. Bc6
{[%clk 0:01:41.1]} 26... Re6 {[%clk 0:01:31.1]} 27. Bd5 {[%clk 0:01:34.4]} 27...
Bxd3+ {[%clk 0:01:23.1]} 28. Rxd3 {[%clk 0:01:32.7]} 28... Re5 {[%clk
0:01:23.8]} 29. Rxe5 {[%clk 0:01:17.4]} 29... fxe5 {[%clk 0:01:23]} 30. Rf3
{[%clk 0:01:16.5]} 30... Rb6 {[%clk 0:01:07.4]} 31. Rxf7+ {[%clk 0:01:15.1]}
31... Ke8 {[%clk 0:01:07.6]} 32. Rxa7 {[%clk 0:01:10]} 32... Bb8 {[%clk
0:01:07.6]} 33. Rb7 {[%clk 0:00:58.1]} 33... Rxb7 {[%clk 0:01:05.6]} 34. Bxb7
{[%clk 0:00:59]} 34... Kd8 {[%clk 0:01:05.5]} 35. Ke2 {[%clk 0:00:56.9]} 35...
Kc7 {[%clk 0:01:05]} 36. Bd5 {[%clk 0:00:48.7]} 36... Kb6 {[%clk 0:01:04.2]} 37.
Kd3 {[%clk 0:00:48.5]} 37... Ka5 {[%clk 0:01:03.7]} 38. a3 {[%clk 0:00:48.4]}
38... Kb6 {[%clk 0:01:02.7]} 39. Be4 {[%clk 0:00:44.2]} 39... Bd6 {[%clk
0:01:01.5]} 40. g3 {[%clk 0:00:40.1]} 40... Kc7 {[%clk 0:01:00.9]} 41. Bg6
{[%clk 0:00:37.5]} 41... Kd7 {[%clk 0:01:00.7]} 42. Ke4 {[%clk 0:00:37.6]} 42...
Ke7 {[%clk 0:00:58.5]} 43. Kd5 {[%clk 0:00:34.1]} 43... Kd7 {[%clk 0:00:56.8]}
44. Bf5+ {[%clk 0:00:23.6]} 44... Kc7 {[%clk 0:00:56.3]} 45. h4 {[%clk 0:00:21]}
45... h5 {[%clk 0:00:53.6]} 46. a4 {[%clk 0:00:14.7]} 46... Be7 {[%clk
0:00:50.9]} 47. Kxe5 {[%clk 0:00:14.5]} 47... Kb6 {[%clk 0:00:51.2]} 48. Bg6
{[%clk 0:00:11.8]} 48... Ka5 {[%clk 0:00:51.2]} 49. Bxh5 {[%clk 0:00:12.2]}
49... Kb4 {[%clk 0:00:51.6]} 50. Bd1 {[%clk 0:00:12.3]} 50... Kc3 {[%clk
0:00:51.6]} 51. Ke4 {[%clk 0:00:12.7]} 51... Kd2 {[%clk 0:00:51.8]} 52. Bg4
{[%clk 0:00:12.4]} 52... d3 {[%clk 0:00:51.3]} 53. a5 {[%clk 0:00:12.8]} 53...
Bd8 {[%clk 0:00:50.4]} 54. a6 {[%clk 0:00:13.1]} 54... Bb6 {[%clk 0:00:50.7]}
55. h5 {[%clk 0:00:13.7]} 55... Kc3 {[%clk 0:00:49.6]} 56. h6 {[%clk 0:00:14.1]}
56... d2 {[%clk 0:00:49.9]} 57. h7 {[%clk 0:00:14.3]} 1-0

[Event "Late-Titled-Tuesday-Blitz-November-28-2023"]
[Site "Chess.com"]
[Date "2023.11.28"]
[Round "10"]
[White "andrzej"]
[Black "Mikhail_Golubev"]
[Result "1-0"]
[WhiteElo "2490"]
[BlackElo "2579"]
[TimeControl "180+1"]
[EndTime "15:51:52 PST"]
[Termination "andrzej won on time"]

1. e4 {[%clk 0:03:00.9]} 1... c5 {[%clk 0:03:00.1]} 2. Nf3 {[%clk 0:03:01.4]}
2... d6 {[%clk 0:03:00.1]} 3. d4 {[%clk 0:03:01.8]} 3... cxd4 {[%clk 0:02:59.9]}
4. Nxd4 {[%clk 0:03:02.7]} 4... Nf6 {[%clk 0:02:59.6]} 5. Nc3 {[%clk 0:03:03.3]}
5... g6 {[%clk 0:03:00.2]} 6. Be3 {[%clk 0:03:03.6]} 6... Bg7 {[%clk 0:03:00.4]}
7. f3 {[%clk 0:03:04.3]} 7... a6 {[%clk 0:02:58.6]} 8. Qd2 {[%clk 0:03:04.1]}
8... Nbd7 {[%clk 0:02:59.2]} 9. Bc4 {[%clk 0:03:00]} 9... O-O {[%clk 0:02:49.5]}
10. O-O-O {[%clk 0:02:55.9]} 10... b5 {[%clk 0:02:47.4]} 11. Bd5 {[%clk
0:02:55.7]} 11... Nxd5 {[%clk 0:02:46.7]} 12. Nxd5 {[%clk 0:02:56.6]} 12... Bb7
{[%clk 0:02:45.7]} 13. Kb1 {[%clk 0:02:52.8]} 13... Ne5 {[%clk 0:02:30.6]} 14.
Bh6 {[%clk 0:02:41.8]} 14... e6 {[%clk 0:02:06.1]} 15. Bg5 {[%clk 0:02:25.4]}
15... Nc4 {[%clk 0:01:52.6]} 16. Qc1 {[%clk 0:02:17.8]} 16... exd5 {[%clk
0:01:13.5]} 17. Bxd8 {[%clk 0:02:16.7]} 17... Rfxd8 {[%clk 0:01:13]} 18. exd5
{[%clk 0:02:13.1]} 18... Bxd5 {[%clk 0:01:04.7]} 19. h4 {[%clk 0:02:00.9]} 19...
b4 {[%clk 0:00:54.4]} 20. h5 {[%clk 0:01:53.5]} 20... Rab8 {[%clk 0:00:46]} 21.
hxg6 {[%clk 0:01:49.4]} 21... hxg6 {[%clk 0:00:46.9]} 22. Qg5 {[%clk 0:01:43.9]}
22... Ba8 {[%clk 0:00:31.2]} 23. Qh4 {[%clk 0:01:33]} 23... a5 {[%clk
0:00:26.7]} 24. Rde1 {[%clk 0:00:58.8]} 24... Rdc8 {[%clk 0:00:19.9]} 25. Qh7+
{[%clk 0:00:27.1]} 25... Kf8 {[%clk 0:00:19.4]} 26. Qh4 {[%clk 0:00:16.7]} 26...
Bd5 {[%clk 0:00:17]} 27. Qe7+ {[%clk 0:00:15]} 27... Kg8 {[%clk 0:00:17.2]} 28.
Qg5 {[%clk 0:00:10.6]} 28... Bxd4 {[%clk 0:00:09.9]} 29. Qxd5 {[%clk 0:00:09.8]}
29... Bxb2 {[%clk 0:00:09.3]} 30. Re7 {[%clk 0:00:04.3]} 30... Na3+ {[%clk
0:00:01.2]} 31. Kxb2 {[%clk 0:00:04.4]} 1-0